bitfinex-derivatives/quotes_ETHF0:USTF0_20250905
["timestamp","ask_amount","ask_price","bid_price","bid_amount"]
[1757066024501,0.7257,4393.8,4393.7,0.3929]
[1757066025507,0.3488,4394.5,4393.4,3.2078]
[1757066025508,0.5204,4394.4,4394.3,0.3929]
[1757066026212,0.7257,4394.4,4394.3,0.3929]
[1757066029513,0.5204,4394.4,4394.3,0.5619]
[1757066029710,0.3146,4394.4,4394.3,0.5619]
[1757066029909,0.5117,4394.4,4394.3,0.5619]
[1757066030616,0.5117,4394.4,4394.3,0.3929]
[1757066030814,0.7143,4394.4,4394.3,0.3929]
[1757066037519,0.2984,4394.3,4394.0,3.2078]
[1757066037918,0.2984,4394.3,4394.2,0.1978]
[1757066038119,0.6981,4394.3,4394.2,0.1978]
[1757066039219,0.2984,4394.2,4394.0,3.2078]
[1757066039412,0.3997,4394.1,4394.0,3.2078]
[1757066039614,0.6981,4394.1,4394.0,3.2078]
[1757066040421,0.6981,4394.1,4394.0,3.4056]
[1757066040621,0.6981,4394.1,4394.0,3.2078]
[1757066042818,0.6981,4394.1,4394.0,3.4056]
[1757066043014,0.4955,4394.4,4394.3,0.5732]
[1757066043218,0.2984,4394.9,4394.8,0.5732]
[1757066043419,0.2984,4395.3,4394.8,0.4042]
[1757066043627,0.6981,4395.3,4395.2,0.1978]
[1757066044820,0.6981,4395.3,4394.7,0.232]
[1757066045019,0.8226,4395.0,4394.9,0.1978]
[1757066045218,0.8226,4395.0,4394.2,0.169]
[1757066045419,0.3216,4394.5,4394.4,0.4042]
[1757066045617,0.5242,4394.5,4394.1,3.2078]
[1757066045821,0.6981,4394.2,4394.1,3.2078]
[1757066046624,0.6981,4394.2,4394.1,3.4056]
[1757066048426,0.2984,4394.2,4394.1,3.781]
[1757066048626,0.1245,4394.5,4394.1,3.612]
[1757066048827,0.2984,4394.4,4394.3,0.5732]
[1757066049224,0.2984,4394.4,4394.3,0.8052]
[1757066049530,0.4955,4394.4,4394.3,0.8052]
[1757066053631,0.6981,4394.4,4394.3,0.6362]
[1757066059749,0.6981,4394.4,4394.3,0.4298]
[1757066060448,0.6981,4394.4,4394.3,0.6391]
[1757066062949,0.4955,4394.4,4394.3,0.8081]
[1757066064554,0.697,4394.4,4394.3,0.6391]
[1757066066555,0.697,4394.4,4394.3,0.4071]
[1757066066855,0.697,4394.4,4394.3,0.6391]
[1757066067462,0.1245,4395.0,4394.8,0.409]
[1757066067657,0.3265,4395.5,4395.4,0.409]
[1757066067858,0.528,4395.5,4395.4,0.232]
[1757066068056,0.8426,4395.5,4395.4,0.232]
[1757066068258,0.8523,4395.0,4394.9,3.4075]
[1757066068452,0.8523,4395.0,4394.9,3.6395]
[1757066068657,0.8523,4395.0,4394.9,3.8488]
[1757066069056,0.8523,4395.0,4394.9,4.0177]
[1757066070458,0.8523,4395.0,4394.9,3.8488]
[1757066071455,0.8523,4395.0,4394.9,3.4075]
[1757066071659,0.8523,4395.0,4394.9,3.6395]
[1757066071866,0.8523,4395.0,4394.9,3.8488]
[1757066072349,0.6508,4395.0,4394.9,4.0177]
[1757066072556,0.3146,4395.4,4394.9,3.8488]
[1757066072755,0.528,4395.5,4395.4,0.1997]
[1757066073154,0.8426,4395.5,4395.4,0.1997]
[1757066079057,0.8426,4395.5,4395.2,2.674]
[1757066079252,0.1168,4395.5,4395.2,2.674]
[1757066079453,0.7258,4395.3,4395.2,2.8737]
[1757066081058,0.7258,4395.3,4395.2,2.674]
[1757066084769,0.7258,4395.3,4394.8,0.232]
[1757066084770,0.7258,4394.9,4394.8,0.232]
[1757066084973,0.6508,4394.5,4394.4,6.5228]
[1757066085164,0.1265,4395.0,4394.4,6.6917]
[1757066085364,0.5377,4395.0,4394.9,0.409]
[1757066086071,0.8523,4395.0,4394.9,0.409]
[1757066088469,0.3094,4395.4,4394.9,0.409]
[1757066088673,0.5182,4395.4,4395.3,0.4015]
[1757066088875,0.5182,4395.4,4395.3,0.5693]
[1757066092067,0.5182,4395.4,4395.3,0.4015]
[1757066092869,0.5182,4395.4,4395.3,0.5693]
[1757066094076,0.5182,4395.4,4395.3,0.4015]
[1757066094368,0.5182,4395.4,4395.0,3.6076]
[1757066094369,0.3094,4395.3,4395.0,3.4398]
[1757066094567,0.715,4395.1,4395.0,3.4398]
[1757066094969,0.715,4395.1,4395.0,3.2078]
[1757066095583,0.715,4395.1,4395.0,3.4027]
[1757066099276,0.5182,4395.1,4395.0,3.7771]
[1757066099573,0.3094,4395.1,4395.0,3.7771]
[1757066105380,0.3094,4395.1,4395.0,6.4511]
[1757066105680,0.3094,4395.1,4395.0,3.7771]
[1757066105883,0.3094,4395.4,4395.0,3.6093]
[1757066106080,0.3094,4395.4,4395.3,0.5693]
[1757066106276,0.3094,4395.4,4395.3,0.8013]
[1757066107575,0.5182,4395.4,4395.3,0.8013]
[1757066116495,0.5182,4395.4,4395.3,0.6335]
[1757066121900,0.7183,4395.4,4395.3,0.6335]
[1757066122500,0.7183,4395.4,4395.3,0.4269]
[1757066122803,0.7183,4395.4,4395.3,0.232]
[1757066124802,0.7183,4395.4,4395.3,0.6292]
[1757066125001,0.7183,4395.4,4395.3,0.7981]
[1757066126103,0.2935,4396.4,4395.9,0.3972]
[1757066126303,0.4982,4396.4,4396.3,3.7739]
[1757066126603,0.6983,4396.4,4396.3,3.605]
[1757066127398,0.5294,4396.5,4396.4,0.1968]
[1757066127597,0.8229,4396.5,4396.4,0.4278]
[1757066129806,0.8229,4396.5,4396.4,0.6282]
[1757066130701,0.8229,4396.5,4396.4,0.7971]
[1757066130907,0.8229,4396.5,4396.4,0.6282]
[1757066131607,0.6228,4396.5,4396.4,0.7971]
[1757066131808,0.4181,4396.5,4396.4,0.7971]
[1757066133109,0.6228,4396.5,4396.4,0.7971]
[1757066133305,0.4119,4397.0,4396.9,0.97544]
[1757066133508,0.6166,4397.0,4396.9,3.836]
[1757066134007,0.6166,4397.0,4396.9,4.0049]
[1757066134204,0.6166,4397.0,4396.9,3.836]
[1757066134406,0.8167,4397.0,4396.9,3.836]
[1757066134808,0.2935,4397.0,4396.9,4.0049]
[1757066137397,0.6228,4397.0,4396.9,4.0049]
[1757066137607,0.6228,4397.0,4396.9,3.836]
[1757066138210,0.8229,4397.0,4396.9,3.836]
[1757066140404,0.8229,4397.0,4396.9,3.2078]
[1757066140611,0.8229,4397.0,4396.9,3.4388]
[1757066141707,0.8229,4397.0,4396.9,0.231]
[1757066142405,0.2935,4396.9,4396.8,0.231]
[1757066142605,0.6983,4396.9,4396.8,0.231]
[1757066142912,0.2935,4396.9,4396.8,0.7971]
[1757066143506,0.4982,4396.9,4396.8,0.7971]
[1757066143699,0.4982,4396.9,4396.8,0.6282]
[1757066145210,0.4982,4396.9,4396.8,3.3022]
[1757066145810,0.4982,4396.9,4396.8,3.71154]
[1757066146014,0.2047,4397.4,4397.3,0.3972]
[1757066146207,0.6983,4397.4,4397.3,0.1968]
[1757066147411,0.6983,4397.4,4397.1,3.2078]
[1757066147609,0.4048,4397.4,4397.1,3.2078]
[1757066147810,0.4048,4397.2,4397.1,3.4046]
[1757066148111,0.6983,4397.2,4397.1,3.4046]
[1757066148315,0.6983,4397.2,4397.1,3.2078]
[1757066148611,0.8266,4397.0,4396.9,0.4227]
[1757066148811,0.4197,4397.0,4396.9,4.0072]
[1757066149215,0.4197,4397.0,4396.9,4.41654]
[1757066150516,0.6169,4397.0,4396.9,4.41654]
[1757066154723,0.6169,4397.0,4396.9,4.0072]
[1757066155620,0.6169,4397.0,4396.9,4.41653]
[1757066155826,0.6169,4397.0,4396.9,7.09053]
[1757066158323,0.6169,4397.0,4396.9,6.6812]
[1757066159122,0.6169,4397.0,4396.9,4.0072]
[1757066159425,0.6169,4397.0,4396.9,4.41653]
[1757066160125,0.6169,4397.0,4396.9,4.0072]
[1757066160824,0.4197,4397.0,4396.9,4.0072]
[1757066161526,0.3006,4397.0,4396.9,4.0072]
[1757066161722,0.3006,4397.4,4397.0,0.1685]
[1757066161923,0.7075,4397.4,4397.3,0.3999]
[1757066162323,0.7075,4397.4,4397.3,0.6309]
[1757066163521,0.7075,4397.4,4397.3,0.4227]
[1757066163717,0.8266,4397.0,4396.9,3.2078]
[1757066163922,0.8266,4397.0,4396.9,0.231]
[1757066164625,0.8266,4397.0,4396.9,0.4227]
[1757066166527,0.5315,4397.5,4397.4,0.1917]
[1757066166728,0.1191,4397.0,4396.9,3.8387]
[1757066166928,0.3163,4397.0,4396.9,3.8387]
[1757066167129,0.6169,4397.0,4396.9,3.8387]
[1757066167926,0.3006,4397.4,4396.9,3.4388]
[1757066168132,0.4978,4397.4,4397.3,0.5684]
[1757066169230,0.7075,4397.4,4397.3,0.3999]
[1757066173235,0.4978,4397.4,4397.3,0.5684]
[1757066173434,0.4978,4397.4,4397.3,0.3999]
[1757066173734,0.4978,4397.4,4397.3,0.6309]
[1757066173931,0.3006,4397.9,4397.8,0.97765]
[1757066174139,0.3006,4397.9,4397.8,4.41645]
[1757066174637,0.4978,4397.9,4397.8,4.41645]
[1757066178336,0.3006,4397.9,4397.8,4.41645]
[1757066178534,0.6957,4397.9,4397.8,3.2078]
[1757066179229,0.7083,4397.3,4397.2,3.4388]
[1757066179437,0.7083,4397.3,4397.2,3.2078]
[1757066180435,0.7083,4397.3,4397.2,4.03301]
[1757066180636,0.7083,4397.3,4397.2,3.6237]
[1757066183038,0.7083,4397.3,4397.2,4.03301]
[1757066183238,0.7083,4397.3,4397.2,3.6237]
[1757066184637,0.3132,4397.3,4397.2,4.20231]
[1757066186440,0.4301,4397.5,4397.4,0.82519]
[1757066186635,0.6273,4397.5,4397.4,1.22549]
[1757066188040,0.4301,4397.5,4397.4,1.22549]
[1757066189344,0.1246,4398.0,4397.9,0.4159]
[1757066189542,0.4378,4398.0,4397.9,0.4159]
[1757066189842,0.3218,4398.5,4398.4,0.4159]
[1757066190044,0.635,4398.5,4398.4,0.4159]
[1757066190239,0.8329,4398.5,4398.4,0.4159]
[1757066194137,0.8329,4398.5,4398.4,0.2086]
[1757066194339,0.5197,4398.5,4398.1,0.231]
[1757066194538,0.7083,4398.2,4398.1,0.231]
[1757066195549,0.7083,4398.2,4398.1,0.4396]
[1757066196643,0.3951,4398.2,4397.7,3.2078]
[1757066196846,0.1169,4398.0,4397.7,3.4388]
[1757066197847,0.3951,4397.8,4397.7,3.6474]
[1757066198048,0.7083,4397.8,4397.7,3.6474]
[1757066198749,0.7083,4397.8,4397.7,3.8547]
[1757066199842,0.3132,4398.4,4398.3,0.4159]
[1757066200050,0.5104,4398.9,4398.8,0.4159]
[1757066200240,0.7083,4398.9,4398.2,3.2078]
[1757066200447,0.512,4398.5,4398.4,0.2086]
[1757066200847,0.8252,4398.5,4398.4,0.2086]
[1757066203757,0.8252,4398.5,4398.3,0.231]
[1757066204447,0.512,4398.5,4398.2,3.2078]
[1757066204653,0.3132,4398.4,4398.2,3.2078]
[1757066204850,0.7083,4398.3,4398.2,3.4164]
[1757066205556,0.62246,4398.3,4397.6,3.2078]
[1757066205757,0.3951,4397.7,4397.6,3.2078]
[1757066205950,0.7083,4397.7,4397.6,3.2078]
[1757066207361,0.7083,4397.7,4397.6,3.4164]
[1757066208358,0.7083,4397.7,4397.6,3.2078]
[1757066210960,0.4135,4397.3,4397.2,0.4403]
[1757066211160,0.7173,4397.3,4397.2,0.4403]
[1757066212354,0.3038,4397.2,4397.1,3.2078]
[1757066212652,0.7173,4397.2,4397.1,3.4171]
[1757066213058,0.7173,4397.2,4397.1,3.619]
[1757066213253,0.7173,4397.2,4397.1,3.4171]
[1757066217661,0.7173,4397.2,4396.6,3.2078]
[1757066217871,0.7173,4396.8,4396.7,0.6422]
[1757066223074,0.7173,4396.8,4396.7,0.8109]
[1757066223373,0.7173,4396.8,4396.7,0.6422]
[1757066223673,0.7173,4396.8,4396.7,0.4112]
[1757066226376,0.7173,4396.8,4396.7,0.5799]
[1757066226677,0.3038,4397.0,4396.9,0.5799]
[1757066226975,0.3038,4397.0,4396.9,0.8109]
[1757066227681,0.6365,4397.0,4396.9,0.8109]
[1757066230579,0.6365,4397.0,4396.9,0.6422]
[1757066232883,0.8374,4397.0,4396.9,0.6422]
[1757066233579,0.6365,4397.0,4396.9,0.6422]
[1757066233880,0.6365,4397.0,4396.9,0.8109]
[1757066234480,0.6365,4397.0,4396.9,0.6422]
[1757066234779,0.8374,4397.0,4396.9,0.6422]
[1757066237186,0.8374,4397.0,4396.9,0.231]
[1757066238788,0.8374,4397.0,4396.6,3.2078]
[1757066238987,0.2912,4396.9,4396.6,3.4388]
[1757066239687,0.3915,4396.7,4396.6,3.6415]
[1757066239881,0.6827,4396.7,4396.6,3.8349]
[1757066240685,0.6827,4396.7,4396.6,4.0032]
[1757066240882,0.2912,4396.7,4396.6,4.0032]
[1757066241188,0.2912,4396.9,4396.8,0.5644]
[1757066241487,0.1201,4397.5,4397.2,0.5644]
[1757066241488,0.2912,4397.3,4397.2,0.5644]
[1757066241790,0.2912,4397.3,4397.2,6.6772]
[1757066241988,0.4832,4397.3,4397.2,6.6772]
[1757066243792,0.4832,4397.3,4397.2,6.5089]
[1757066244691,0.4832,4397.3,4397.2,6.6778]
[1757066245293,0.2912,4397.3,4397.2,6.6778]
[1757066246800,0.6827,4397.3,4397.2,6.2779]
[1757066247003,0.6827,4397.3,4397.2,6.5089]
[1757066247296,0.6827,4397.3,4397.2,6.3155]
[1757066247593,0.6827,4397.3,4397.2,5.8818]
[1757066247796,0.6827,4397.3,4397.2,3.2078]
[1757066248398,0.6827,4397.3,4397.2,3.4105]
[1757066252302,0.6827,4397.3,4397.2,3.7728]
[1757066252303,0.4832,4397.3,4397.2,3.7728]
[1757066253597,0.4832,4397.3,4397.2,3.2078]
[1757066253598,0.6827,4397.3,4397.2,3.2078]
[1757066253797,0.6827,4397.3,4397.2,3.4105]
[1757066255404,0.6827,4397.3,4397.2,3.6039]
[1757066257202,0.6827,4397.3,4397.2,3.7728]
[1757066258102,0.1169,4398.0,4397.3,0.1689]
[1757066258298,0.4832,4397.9,4397.8,0.565]
[1757066258500,0.6827,4397.9,4397.8,0.3961]
[1757066259408,0.2912,4398.4,4398.3,0.3961]
[1757066259610,1.71306819,4399.0,4398.9,0.2027]
[1757066259904,0.3073,4398.5,4398.4,0.565]
[1757066260208,0.2912,4398.5,4398.4,0.565]
[1757066262309,0.2912,4398.5,4398.4,0.796]
[1757066262510,0.5985,4398.5,4398.4,0.796]
[1757066263011,0.798,4398.5,4398.4,0.6271]
[1757066265805,0.6827,4397.9,4397.8,6.2779]
[1757066266010,0.6827,4397.9,4397.8,6.5089]
[1757066270309,0.6827,4397.9,4397.8,6.6782]
[1757066271514,0.6827,4397.9,4397.8,4.0042]
[1757066273510,0.2877,4398.4,4397.9,0.40924]
[1757066273718,0.7001,4398.1,4398.0,0.6193]
[1757066275020,0.2877,4398.1,4398.0,0.7886]
[1757066275222,0.2877,4398.4,4398.1,0.57852]
[1757066275519,0.2877,4398.4,4398.3,3.7654]
[1757066276121,0.2877,4398.4,4398.3,4.17461]
[1757066277514,3.5358,4399.0,4398.9,0.3883]
[1757066277711,3.7355,4399.0,4398.9,0.3883]
[1757066278123,4.0232,4399.0,4398.9,0.1946]
[1757066278313,3.8235,4399.0,4398.9,0.3883]
[1757066278513,4.0232,4399.0,4398.9,0.3883]
[1757066279221,4.0232,4399.0,4398.9,0.1946]
[1757066280714,0.8154,4399.0,4398.9,0.1946]
[1757066281017,0.6157,4399.0,4398.9,0.3883]
[1757066281415,0.8154,4399.0,4398.9,0.3883]
[1757066288629,0.8154,4399.0,4398.9,0.5576]
[1757066289228,0.8154,4399.0,4398.9,0.3883]
[1757066291822,0.8154,4399.0,4398.9,0.79745]
[1757066292021,0.8154,4399.0,4398.9,0.3883]
[1757066293825,0.8154,4399.0,4398.9,0.79745]
[1757066294226,0.8154,4399.0,4398.9,0.3883]
[1757066297137,0.8154,4399.0,4398.9,0.79745]
[1757066297325,0.403,4399.0,4398.9,1.19745]
[1757066297635,0.7001,4399.4,4399.3,0.3883]
[1757066297833,0.7001,4399.4,4399.3,3.5961]
[1757066298438,0.7001,4399.4,4399.3,3.4024]
[1757066298629,0.7001,4399.4,4399.3,3.2078]
[1757066298832,0.7001,4399.4,4399.1,0.231]
[1757066299837,0.1277,4399.0,4398.7,3.2078]
[1757066300137,0.685,4398.8,4398.7,3.4023]
[1757066300334,0.685,4398.8,4398.7,3.8323]
[1757066300628,0.685,4398.8,4398.7,3.6013]
[1757066300833,0.685,4398.8,4398.7,3.4388]
[1757066301338,0.685,4398.8,4398.7,3.6333]
[1757066301826,0.685,4398.8,4398.7,3.8323]
[1757066302136,0.685,4398.8,4398.7,4.0012]
[1757066302337,0.685,4398.8,4398.7,3.8323]
[1757066304138,0.685,4398.8,4398.7,6.5063]
[1757066305648,0.685,4398.8,4398.7,6.0763]
[1757066305840,0.685,4398.8,4398.7,2.674]
[1757066310043,0.685,4398.8,4398.4,0.231]
[1757066310234,0.52,4398.5,4398.4,0.231]
[1757066310433,0.8127,4398.5,4398.4,0.231]
[1757066310940,0.8127,4398.5,4398.4,0.4255]
[1757066311840,0.3923,4398.2,4398.1,0.4255]
[1757066312140,0.3923,4398.2,4397.8,2.674]
[1757066312342,0.8127,4398.0,4397.9,0.231]
[1757066312744,0.2927,4397.9,4397.8,2.674]
[1757066312945,0.685,4397.9,4397.8,0.1945]
[1757066316343,0.2927,4397.8,4397.7,3.2078]
[1757066316534,0.685,4397.8,4397.7,3.4023]
[1757066317144,0.685,4397.8,4397.7,3.6013]
[1757066320447,0.685,4397.8,4397.7,3.4023]
[1757066320651,0.3923,4397.3,4397.2,3.6333]
[1757066320850,0.685,4397.3,4397.2,3.8323]
[1757066322556,0.685,4397.3,4397.2,3.6013]
[1757066325657,0.2927,4397.3,4397.2,3.7702]
[1757066325957,0.2927,4397.3,4397.2,4.0012]
[1757066327360,0.4894,4397.3,4397.2,4.0012]
[1757066329760,0.4894,4397.3,4397.2,3.8323]
[1757066330455,0.7002,4397.3,4397.2,3.4023]
[1757066330660,0.7002,4397.3,4397.2,3.6333]
[1757066331963,0.7002,4397.3,4397.2,3.8325]
[1757066332463,0.4894,4397.3,4397.2,4.0006]
[1757066334164,0.4894,4397.3,4397.2,3.7696]
[1757066334364,0.4894,4397.3,4397.2,3.8325]
[1757066335766,0.2927,4397.3,4397.2,4.0006]
[1757066338670,0.2909,4397.9,4397.3,0.1681]
[1757066338969,0.2909,4398.4,4397.8,0.5769]
[1757066339269,0.2909,4397.9,4397.8,0.8079]
[1757066340964,0.5007,4397.9,4397.8,0.8079]
[1757066343877,0.2909,4397.9,4397.8,0.8079]
[1757066346172,0.5007,4397.9,4397.8,0.8079]
[1757066346969,0.4206,4397.9,4397.2,3.3759]
[1757066347174,0.7115,4397.8,4397.7,0.2096]
[1757066347862,0.5007,4397.8,4397.7,0.5769]
[1757066348068,0.2909,4397.8,4397.7,0.5769]
[1757066350069,0.4184,4398.0,4397.9,0.4088]
[1757066350267,0.4184,4398.0,4397.9,0.5769]
[1757066352569,0.2909,4398.4,4398.3,0.98611]
[1757066352869,0.2909,4398.4,4398.3,4.19391]
[1757066354776,0.7115,4398.4,4398.3,3.6166]
[1757066354974,0.7115,4398.4,4398.3,3.4174]
[1757066357675,0.7115,4398.4,4398.3,3.6166]
[1757066358177,0.5007,4398.4,4398.3,3.7855]
[1757066358471,0.5007,4398.4,4398.3,4.19471]
[1757066358676,0.2909,4398.4,4398.3,4.19471]
[1757066358976,0.2909,4398.4,4398.3,3.7855]
[1757066359371,0.4949,4398.4,4398.3,3.7855]
[1757066361781,0.4949,4398.4,4398.3,4.19471]
[1757066362180,0.2909,4398.4,4398.3,4.19471]
[1757066363182,0.2909,4398.4,4398.3,4.42571]
[1757066364587,0.2909,4398.4,4398.3,4.0165]
[1757066364785,0.4949,4398.4,4398.3,4.0165]
[1757066366288,0.687,4398.4,4398.3,3.8476]
[1757066368583,0.687,4398.4,4398.3,3.6166]
[1757066368979,0.687,4398.4,4398.3,4.02581]
[1757066369184,0.687,4398.4,4398.3,3.7849]
[1757066369185,0.4949,4398.4,4398.3,3.7849]
[1757066369685,0.4949,4398.4,4398.3,3.6166]
[1757066369885,0.4949,4398.4,4398.3,3.7849]
[1757066370782,0.4949,4398.4,4398.3,4.0149]
[1757066371390,0.2909,4398.4,4398.3,4.42411]
[1757066372090,0.687,4398.4,4398.3,3.6166]
[1757066372285,0.6836,4398.4,4398.3,0.4102]
[1757066372589,0.6836,4398.4,4398.3,0.5785]
[1757066372789,0.6836,4398.4,4398.3,0.4102]
[1757066373200,0.6836,4398.4,4398.3,0.5785]
[1757066373791,0.2875,4398.4,4398.3,0.5785]
[1757066374188,0.2875,4398.4,4398.3,0.8085]
[1757066376194,0.4915,4398.4,4398.3,0.8085]
[1757066380703,0.4915,4398.4,4398.3,4.0163]
[1757066381399,0.4915,4398.4,4398.3,3.848]
[1757066381695,0.6836,4398.4,4398.3,3.618]
[1757066387400,0.6836,4398.4,4398.3,3.7863]
[1757066387897,0.4796,4398.4,4398.3,3.7863]
[1757066388101,0.2875,4398.4,4398.3,3.7863]
[1757066388905,0.1277,4399.0,4398.4,0.1689]
[1757066389104,1.05934001,4399.0,4398.9,0.4209]
[1757066389403,145.94406,4398.0,4397.9,3.2078]
[1757066389604,145.94406,4398.0,4397.9,3.4378]
[1757066389999,145.94406,4398.0,4397.9,3.84705]
[1757066390402,145.94406,4398.0,4397.9,3.4378]
[1757066390597,146.25986,4398.0,4397.9,3.4378]
[1757066390896,146.25986,4398.0,4397.9,3.84705]
[1757066391097,146.25986,4398.0,4397.9,3.4378]
[1757066392101,146.37716,4398.0,4397.9,3.4378]
[1757066392498,146.37716,4398.0,4397.9,3.84705]
[1757066392799,146.37716,4398.0,4397.9,3.4378]
[1757066393806,146.37716,4398.0,4397.9,3.84705]
[1757066395406,146.57096,4398.0,4397.9,3.4378]
[1757066395605,146.57096,4398.0,4397.9,3.84705]
[1757066399011,146.57096,4398.0,4397.9,6.52105]
[1757066399211,146.76566,4398.0,4397.9,6.52105]
[1757066400212,146.76566,4398.0,4397.9,6.1118]
[1757066401308,146.76566,4398.0,4397.3,2.85616532]
[1757066401309,150.90724,4398.0,4397.3,2.85616532]
[1757066401513,150.90724,4398.0,4396.0,0.30314618]
[1757066401514,3.2078,4397.6,4396.3,0.3122]
[1757066401711,3.2078,4396.7,4396.3,0.3122]
[1757066401907,3.4378,4396.7,4396.2,0.4389]
[1757066402110,3.2078,4396.7,4396.6,0.3122]
[1757066402411,3.2078,4397.4,4396.6,0.7331]
[1757066402613,0.23,4397.3,4396.6,0.4209]
[1757066402807,0.23,4397.3,4396.7,0.5211]
[1757066403013,0.23,4397.3,4397.0,0.3323]
[1757066403219,0.23,4397.3,4397.1,0.3122]
[1757066404116,0.23,4397.3,4397.0,0.1234]
[1757066404308,0.23,4397.3,4396.5,0.1234]
[1757066404618,0.23,4397.3,4396.7,0.3122]
[1757066404820,0.23,4397.3,4396.8,0.5211]
[1757066405011,0.23,4397.3,4397.0,0.1234]
[1757066405315,0.23,4397.3,4397.1,0.3122]
[1757066406118,3.2078,4397.4,4397.0,0.1234]
[1757066406320,0.23,4397.3,4397.0,0.1234]
[1757066406618,0.22742,4397.2,4396.6,0.3122]
[1757066406918,3.2078,4396.7,4396.3,0.3122]
[1757066407109,3.2078,4396.7,4396.3,0.2089]
[1757066407316,3.2078,4396.7,4396.2,0.3969]
[1757066407720,3.2078,4396.7,4396.2,0.188]
[1757066407912,3.2078,4396.7,4396.3,0.3122]
[1757066408823,3.2078,4396.7,4396.6,0.5211]
[1757066411019,3.2078,4396.7,4396.6,0.7331]
[1757066414623,3.2078,4396.7,4396.6,0.9631]
[1757066417730,3.2078,4396.7,4396.6,0.5211]
[1757066418027,3.2078,4396.7,4396.6,0.7511]
[1757066418324,3.2078,4396.7,4396.6,0.5211]
[1757066418529,3.2078,4396.7,4396.6,0.3122]
[1757066419323,3.2078,4396.7,4396.6,0.519]
[1757066419524,3.2078,4396.7,4396.6,0.7108]
[1757066421226,0.23,4397.2,4395.0,0.22546095]
[1757066421431,109.35097034,4395.0,4394.9,0.3986]
[1757066421628,100.97130932,4395.0,4394.9,4.06393]
[1757066421829,100.97130932,4395.0,4394.9,4.47346]
[1757066422230,100.97130932,4395.0,4394.9,4.65621269]
[1757066422532,92.96124343,4395.0,4394.9,4.65621269]
[1757066422734,92.96124343,4395.0,4394.9,4.42868269]
[1757066423033,92.72954343,4395.0,4394.9,4.65621269]
[1757066423534,86.49359084,4395.0,4394.9,4.65621269]
[1757066423735,86.49359084,4395.0,4394.9,4.42868269]
[1757066424730,80.25763825,4395.0,4394.9,4.42868269]
[1757066425629,74.02168566,4395.0,4394.9,4.42868269]
[1757066426735,73.82836952,4395.0,4394.9,4.42868269]
[1757066429337,58.95220462,4395.0,4394.9,4.42868269]
[1757066431033,59.25340462,4395.0,4394.9,4.42868269]
[1757066431437,57.98941802,4395.0,4394.9,4.42868269]
[1757066431635,56.61495244,4395.0,4394.9,4.42868269]
[1757066432340,56.55195244,4395.0,4394.9,4.42868269]
[1757066432540,56.66745244,4395.0,4394.9,4.42868269]
[1757066433040,55.95145244,4395.0,4394.9,4.42868269]
[1757066434340,53.00745244,4395.0,4394.9,4.42868269]
[1757066436542,51.87277696,4395.0,4394.9,4.42868269]
[1757066436740,51.00191696,4395.0,4394.9,4.42868269]
[1757066437443,50.47058696,4395.0,4394.9,4.42868269]
[1757066437744,49.78648696,4395.0,4394.9,4.42868269]
[1757066438347,48.82775046,4395.0,4394.9,4.42868269]
[1757066438546,48.37044046,4395.0,4394.9,4.42868269]
[1757066440245,47.72021046,4395.0,4394.9,4.42868269]
[1757066440445,47.03086046,4395.0,4394.9,4.42868269]
[1757066441545,46.15050853,4395.0,4394.9,4.42868269]
[1757066441742,45.61485853,4395.0,4394.9,4.42868269]
[1757066441941,45.01996853,4395.0,4394.9,4.42868269]
[1757066443546,44.37003853,4395.0,4394.9,4.42868269]
[1757066443846,43.77839853,4395.0,4394.9,4.42868269]
[1757066444848,43.77839853,4395.0,4394.9,4.23688269]
[1757066447338,43.77839853,4395.0,4394.9,4.03008269]
[1757066447949,43.27511853,4395.0,4394.9,4.03008269]
[1757066448148,42.77527853,4395.0,4394.9,4.03008269]
[1757066448352,41.91296093,4395.0,4394.9,4.03008269]
[1757066448543,25.45079093,4395.0,4394.9,4.31208269]
[1757066448742,24.45895093,4395.0,4394.9,4.31208269]
[1757066448947,23.76970093,4395.0,4394.9,4.31208269]
[1757066449145,22.84654093,4395.0,4394.9,9.00208269]
[1757066449447,22.10397093,4395.0,4394.9,9.00208269]
[1757066449648,21.26593093,4395.0,4394.9,9.00208269]
[1757066450050,20.36453093,4395.0,4394.9,9.00208269]
[1757066450252,19.44425093,4395.0,4394.9,9.00208269]
[1757066450547,17.39705093,4395.0,4394.9,8.58598269]
[1757066450742,15.34358093,4395.0,4394.9,9.00208269]
[1757066451047,15.34358093,4395.0,4394.9,49.38598269]
[1757066451248,13.93405862,4395.0,4394.9,49.38598269]
[1757066451449,12.98380862,4395.0,4394.9,49.38598269]
[1757066451650,11.75361836,4395.0,4394.9,49.38598269]
[1757066451845,10.83602836,4395.0,4394.9,49.38598269]
[1757066452346,1e-08,4395.5,4395.4,0.40947]
[1757066452546,0.55050001,4395.5,4395.4,3.84727]
[1757066453044,0.55050001,4395.5,4395.4,44.64727]
[1757066453252,0.01244,4395.5,4395.4,45.06337]
[1757066453450,1e-05,4395.5,4395.4,45.06337]
[1757066454348,0.1155,4396.0,4395.9,0.40942]
[1757066454549,0.1155,4396.5,4396.1,1.0235]
[1757066454754,0.1155,4396.5,4396.2,0.23]
[1757066455552,0.1155,4396.5,4396.4,0.40937]
[1757066455762,0.1155,4396.5,4396.4,0.63937]
[1757066458058,0.1701,4397.0,4396.9,0.40933]